bitfinex/quotes_ETHUSD_20250428
["timestamp","ask_amount","ask_price","bid_price","bid_amount"]
[1745857156879,1.75,1751.0,1750.1,5.7139411]
[1745857157030,1.75,1751.0,1749.7,5.71526547]
[1745857157231,1.75,1751.0,1750.5,5.71248226]
[1745857157444,1.75,1751.0,1750.6,17.16]
[1745857157839,1.75,1751.0,1750.6,22.87209986]
[1745857158081,1.75,1751.0,1750.6,19.44720999]
[1745857158272,1.75,1751.0,1750.9,5.71134844]
[1745857159035,1.75,1751.0,1750.8,5.71160114]
[1745857159232,1.75,1751.0,1750.9,5.71134844]
[1745857159487,1.75,1751.0,1750.8,5.71150883]
[1745857159682,1.75,1751.0,1750.9,5.71134844]
[1745857160178,1.75,1751.0,1750.9,6.26134844]
[1745857160380,0.8282,1751.8,1751.3,5.70997792]
[1745857160681,0.30935123,1751.7,1751.1,5.71050977]
[1745857160849,0.30935123,1751.7,1751.2,22.86315559]
[1745857161045,0.30935123,1751.7,1751.3,5.71004396]
[1745857161247,0.30935123,1752.5,1751.2,25.72065911]
[1745857161487,0.41322625,1752.5,1751.3,5.70982492]
[1745857161687,0.30935123,1752.4,1751.4,5.70954289]
[1745857161885,0.30935123,1752.4,1751.2,25.72072589]
[1745857162094,0.10387502,1752.3,1751.2,17.153]
[1745857162386,0.80387502,1752.3,1751.3,17.153]
[1745857162546,0.30935123,1752.2,1751.3,17.153]
[1745857162751,0.10387502,1752.1,1751.3,17.153]
[1745857163108,0.30935123,1752.0,1751.3,17.153]
[1745857163879,0.30935123,1752.0,1751.4,5.70941513]
[1745857164085,0.30935123,1751.9,1751.5,5.70933863]
[1745857164290,0.30935123,1751.9,1751.3,19.4393338]
[1745857164588,0.30935123,1751.9,1751.5,5.70910433]
[1745857164777,0.30935123,1751.8,1751.6,5.70884548]
[1745857164949,0.30935123,1751.8,1751.6,0.57088455]
[1745857165149,0.30935123,1751.8,1751.2,0.55]
[1745857165350,0.765,1752.8,1751.3,22.85881569]
[1745857165591,0.10387502,1752.7,1751.5,5.70937111]
[1745857165751,0.10387502,1752.7,1751.3,17.149]
[1745857165752,0.55,1752.6,1751.3,17.149]
[1745857166085,0.41443426,1752.5,1751.4,0.55]
[1745857166288,0.41443426,1752.5,1751.5,5.70921417]
[1745857166470,0.41443426,1752.5,1751.4,1.7699]
[1745857166673,0.41443426,1752.5,1751.5,5.70910247]
[1745857166894,0.31055924,1752.4,1751.5,11.41826082]
[1745857167105,0.31055924,1752.4,1751.6,5.70896085]
[1745857167272,0.31055924,1752.3,1751.7,5.70861552]
[1745857167473,0.31055924,1752.3,1751.5,8.02052697]
[1745857167703,0.31055924,1752.3,1751.7,5.70861542]
[1745857167893,0.31055924,1752.3,1751.6,5.70889418]
[1745857168112,0.31055924,1752.3,1751.6,5.70889109]
[1745857168415,0.10387502,1752.5,1751.3,22.8588909]
[1745857168416,0.31055924,1752.2,1751.3,22.8588909]
[1745857168717,0.31055924,1752.2,1751.4,5.7096982]
[1745857169019,0.31055924,1752.1,1751.3,17.149]
[1745857169376,0.31055924,1752.0,1751.4,5.70967888]
[1745857169617,0.31055924,1752.0,1751.3,22.85903556]
[1745857169618,0.31055924,1752.0,1751.3,22.85884348]
[1745857169990,0.31055924,1751.9,1751.3,22.85882412]
[1745857170190,0.31055924,1751.9,1751.3,22.85881143]
[1745857170378,0.31055924,1751.9,1751.3,28.56864373]
[1745857170579,0.31055924,1751.9,1751.3,22.85881143]
[1745857170811,0.31055924,1751.8,1751.3,28.56865221]
[1745857170998,0.31055924,1751.8,1751.3,22.85881143]
[1745857171313,0.10387502,1752.5,1751.4,17.144]
[1745857171690,0.10387502,1752.5,1751.4,22.85368016]
[1745857171877,0.10387502,1752.5,1751.4,17.144]
[1745857172081,0.30970083,1752.4,1751.4,17.144]
[1745857172297,0.30970083,1752.4,1751.4,22.85349299]
[1745857172481,1.5305,1752.3,1751.4,17.144]
[1745857172802,0.10383659,1752.2,1751.4,17.144]
[1745857173502,0.30970083,1752.1,1751.4,17.144]
[1745857173827,0.30970083,1752.1,1751.1,17.142]
[1745857174026,0.10379854,1752.0,1751.1,22.8525034]
[1745857174227,0.41349937,1752.0,1751.1,25.13784576]
[1745857174425,0.41349937,1752.0,1751.3,5.7098402]
[1745857174636,0.41349937,1752.0,1751.2,5.71020971]
[1745857174787,0.41349937,1752.0,1751.1,25.13781536]
[1745857174993,0.41349937,1752.0,1751.2,22.85221691]
[1745857175188,0.30970083,1751.9,1751.2,22.85216208]
[1745857175391,0.30970083,1751.9,1751.4,5.70944645]
[1745857175623,0.30970083,1751.9,1751.3,0.55]
[1745857175896,0.30970083,1751.9,1751.2,31.89260321]
[1745857176401,0.30970083,1751.8,1751.2,22.85225413]
[1745857176807,0.30970083,1751.7,1751.2,22.85225413]
[1745857177001,0.30970083,1751.7,1751.2,22.85224297]
[1745857177436,0.30970083,1751.7,1751.2,22.85215438]
[1745857177641,0.7,1751.6,1751.3,5.70988978]
[1745857177996,1.2483545,1752.3,1751.3,5.70988978]
[1745857178334,1.35239276,1752.3,1751.3,5.70986208]
[1745857178493,0.30969852,1752.2,1751.2,22.85218951]
[1745857178917,0.30969852,1752.2,1751.3,5.71003558]
[1745857179135,0.30969852,1752.1,1751.3,5.71003558]
[1745857179330,0.30969852,1752.1,1751.2,22.85218951]
[1745857179550,0.30969852,1752.1,1751.3,6.26004396]
[1745857179726,0.30969852,1752.0,1751.5,5.70920712]
[1745857180035,0.30969852,1752.0,1751.5,5.70926999]
[1745857180537,0.30969852,1751.9,1751.3,5.70994282]
[1745857180748,0.30969852,1751.9,1751.4,5.70952243]
[1745857181049,0.30969852,1751.8,1751.4,1.1419422]
[1745857181207,0.30969852,1751.8,1751.4,5.70954574]
[1745857181403,0.30969852,1751.8,1751.4,5.70950224]
[1745857181643,0.30969852,1751.8,1751.5,5.70927652]
[1745857181951,0.30969852,1751.7,1751.4,11.41901691]
[1745857182154,0.30969852,1751.7,1751.5,5.70937562]
[1745857182354,0.30969852,1751.7,1751.6,5.70906599]
[1745857182554,0.93453826,1752.3,1751.6,6.23707063]
[1745857182857,0.93453826,1752.3,1751.5,5.70912225]
[1745857183062,0.93453826,1752.3,1751.6,5.70892899]
[1745857183353,0.83860629,1752.2,1751.4,5.70955038]
[1745857183561,0.83860629,1752.2,1751.2,20.8172801]
[1745857183562,0.83860629,1752.2,1751.2,23.67122158]
[1745857183859,0.83860629,1752.2,1751.3,5.71004396]
[1745857184156,0.31447395,1752.1,1751.5,5.70917091]
[1745857184356,0.83860629,1752.1,1751.6,5.70877049]
[1745857184558,0.31447395,1752.1,1751.7,5.70861463]
[1745857184911,0.31447395,1752.1,1751.5,5.70916564]
[1745857185143,0.93453826,1752.3,1751.5,5.709281]
[1745857185342,0.52597756,1752.0,1751.5,5.709281]
[1745857185564,0.52597756,1752.0,1751.5,5.7093712]
[1745857185768,0.52597756,1751.9,1751.5,5.7093712]
[1745857185914,0.52597756,1751.9,1751.5,5.70920479]
[1745857186228,0.93453826,1752.3,1751.5,5.70920148]
[1745857186639,0.93453826,1752.3,1751.6,5.70906069]
[1745857186845,0.84238027,1752.2,1751.5,5.70916177]
[1745857187054,0.84238027,1752.2,1751.5,5.70936976]
[1745857187613,0.52651418,1752.1,1751.5,5.70936976]
[1745857187841,0.52651418,1752.1,1751.4,22.84954727]
[1745857188053,0.93453826,1752.3,1751.5,5.70920915]
[1745857188054,0.84238027,1752.0,1751.5,5.70920915]
[1745857188252,0.84238027,1752.0,1751.4,17.14]
[1745857188456,0.52651418,1751.9,1751.5,17.57036583]
[1745857188629,0.52651418,1751.9,1751.5,11.861]
[1745857188824,0.52651418,1751.9,1751.5,17.57009637]
[1745857189126,0.84238027,1751.8,1751.6,5.70886397]
[1745857189329,0.84238027,1751.8,1751.7,5.70874008]
[1745857189618,0.31586609,1751.8,1751.6,5.70886397]
[1745857190019,0.31586609,1751.8,1751.5,17.57013935]
[1745857190234,0.93453826,1752.3,1751.6,5.70878948]
[1745857190536,0.8305,1752.3,1751.7,5.70843954]
[1745857190743,0.8305,1752.3,1751.5,17.57035306]
[1745857190744,0.8305,1752.3,1751.9,5.70792816]
[1745857191163,0.8305,1752.3,1751.9,5.70786881]
[1745857191365,0.28456019,1753.6,1751.9,8.59131385]
[1745857191366,0.31713927,1752.2,1751.9,8.59131385]
[1745857191530,0.31713927,1752.2,1751.9,13.72850629]
[1745857191868,0.31713927,1752.2,1752.0,11.861]
[1745857192173,0.31713927,1752.2,1751.7,5.7086087]
[1745857192323,0.31713927,1752.1,1751.8,11.861]
[1745857193340,0.31713927,1752.6,1751.8,11.861]
[1745857193660,0.42117753,1752.6,1751.8,11.861]
[1745857194024,0.31713927,1752.5,1751.8,11.861]
[1745857194765,0.31713927,1752.4,1751.8,11.861]
[1745857195856,0.31713927,1752.3,1751.8,11.861]
[1745857196867,0.31713927,1752.3,1751.3,8.57052697]
[1745857196868,0.7578,1752.2,1751.6,11.567]
[1745857197022,1.51337114,1752.2,1751.6,11.567]
[1745857197962,0.31713927,1752.1,1751.6,11.567]
[1745857198930,0.31713927,1752.0,1751.3,17.136]
[1745857199159,0.31713927,1752.0,1751.4,11.567]
[1745857199675,0.31713927,1751.9,1751.4,11.567]
[1745857200250,0.7778,1751.8,1751.0,17.138]
[1745857200464,0.88172322,1751.8,1751.3,11.272]
[1745857200766,0.31713927,1751.7,1751.3,11.272]
[1745857201328,0.31713927,1751.6,1751.3,11.272]
[1745857202370,0.7778,1751.8,1751.3,11.272]
[1745857202667,3.02629186,1751.7,1751.3,11.272]
[1745857202850,3.40670105,1751.7,1751.3,11.272]
[1745857203176,3.40670105,1751.7,1751.2,11.272]
[1745857204068,3.0,1751.6,1751.2,11.272]
[1745857204452,0.31739832,1751.5,1751.2,11.272]
[1745857205169,0.31739832,1751.6,1751.2,11.272]
[1745857205371,1.0025829,1751.6,1751.2,11.272]
[1745857206969,0.31739832,1751.6,1751.2,11.272]
[1745857207796,0.31739832,1751.6,1751.2,16.98208878]
[1745857208102,0.7778,1751.8,1751.3,5.70998878]
[1745857208256,0.7778,1751.8,1751.4,5.70939481]
[1745857208450,0.7778,1751.8,1751.2,16.98235047]
[1745857208451,0.31739832,1752.0,1751.6,11.41548519]
[1745857208670,0.31739832,1752.1,1751.6,11.41547723]
[1745857208874,0.31739832,1752.1,1751.8,5.70819403]
[1745857209096,0.31739832,1752.1,1751.6,5.70660895]
[1745857209097,0.31739832,1752.1,1751.9,22.38154867]
[1745857209393,0.31739832,1752.1,1751.9,39.52049453]
[1745857209564,9.82474137,1752.4,1752.1,5.7073292]
[1745857209766,9.82474137,1752.4,1751.9,33.81260895]
[1745857209973,11.49914458,1752.4,1751.9,28.106]
[1745857210265,3.3174787,1752.3,1751.9,17.139]
[1745857210593,0.3174787,1752.3,1751.9,17.139]
[1745857210803,0.3174787,1752.2,1751.9,17.139]
[1745857211151,0.3174787,1752.2,1751.7,10.967]
[1745857211152,0.7919,1752.1,1751.7,10.967]
[1745857211358,1.1093787,1752.1,1751.7,10.967]
[1745857211593,1.21236422,1752.1,1751.7,10.967]
[1745857211800,1.21236422,1752.1,1751.5,10.967]
[1745857212101,0.3174787,1752.0,1751.5,10.967]
[1745857212280,0.3174787,1752.0,1751.6,5.7087917]
[1745857212465,0.3174787,1752.0,1751.7,5.70865901]
[1745857213096,0.7919,1752.4,1751.6,11.41542991]
[1745857213303,0.7919,1752.4,1751.7,5.70869443]
[1745857213467,0.7919,1752.4,1751.6,5.70892283]
[1745857213659,0.7919,1752.4,1751.6,5.70884989]
[1745857214595,0.7919,1752.4,1751.5,10.967]
[1745857214782,0.7919,1752.4,1751.4,5.70949949]
[1745857214963,3.0,1752.3,1751.5,10.643]
[1745857215166,0.3,1752.2,1751.5,10.643]
[1745857215484,0.3,1752.2,1751.5,16.35220525]
[1745857215706,0.6174787,1752.2,1751.5,10.643]
[1745857216360,0.6174787,1752.2,1751.6,10.643]
[1745857217600,0.3174787,1752.2,1751.6,16.35192919]
[1745857217899,0.3174787,1752.2,1751.6,22.06077284]
[1745857218082,0.3174787,1752.2,1751.6,16.35194332]
[1745857218283,0.3174787,1752.2,1751.7,5.7087325]
[1745857218493,0.7919,1752.4,1751.8,5.708158]
[1745857219164,0.7919,1752.4,1751.7,0.55]
[1745857219367,0.3174787,1752.5,1751.9,5.70778999]
[1745857219593,0.3174787,1752.5,1752.2,5.70693675]
[1745857219779,0.3174787,1752.5,1752.3,10.643]
[1745857219977,0.7836,1752.7,1752.3,15.91054418]
[1745857220203,0.8258,1753.0,1752.3,27.3419]
[1745857220364,0.8258,1753.0,1752.3,33.0486777]
[1745857220695,0.8258,1753.0,1752.3,27.3419]
[1745857220896,0.8258,1753.0,1752.3,33.04856086]
[1745857221100,0.8258,1753.0,1752.3,27.3419]
[1745857221297,0.8258,1753.0,1752.3,33.04851565]
[1745857221590,0.8258,1753.0,1752.3,27.3419]
[1745857222499,1.25134193,1753.0,1752.3,27.3419]
[1745857223169,0.31713619,1752.9,1752.3,27.3419]
[1745857223492,0.31713619,1752.9,1752.3,27.489]
[1745857224786,1.25134193,1753.0,1752.3,27.489]
[1745857225190,1.25134193,1753.0,1752.3,30.2379]
[1745857225593,0.7971,1753.3,1752.3,31.0604]
[1745857225795,0.7971,1753.3,1752.4,5.706136]
[1745857226791,0.7971,1753.3,1752.3,39.06417973]
[1745857226792,0.7971,1753.3,1752.3,31.0604]
[1745857227003,0.7971,1753.3,1752.3,36.76699153]
[1745857227699,1.22247057,1753.3,1752.3,36.76699153]
[1745857227906,1.22247057,1753.3,1752.4,3.67669915]
[1745857228489,1.22247057,1753.3,1752.4,9.38312073]
[1745857228811,1.22247057,1753.3,1752.4,9.38309767]
[1745857229117,1.22247057,1753.3,1752.4,9.38294079]
[1745857229477,1.22247057,1753.3,1752.4,3.67669915]
[1745857230178,1.22247057,1753.3,1752.5,0.36766992]
[1745857231174,1.22247057,1753.3,1752.5,6.07367628]
[1745857231373,1.22247057,1753.3,1752.5,6.07358246]
[1745857231675,1.22247057,1753.3,1752.5,6.07357605]
[1745857231906,1.22247057,1753.3,1752.5,0.36766992]
[1745857232284,1.22247057,1753.3,1752.3,28.3115]
[1745857232499,0.17721562,1753.2,1752.3,28.3115]
[1745857232704,1.22247057,1753.3,1752.3,28.3115]
[1745857233006,0.17721562,1753.2,1752.3,28.3115]
[1745857233214,0.17721562,1753.2,1752.3,34.01823287]
[1745857233413,1.22247057,1753.3,1752.3,37.99074646]
[1745857233609,1.22247057,1753.3,1752.4,5.70632912]
[1745857233909,1.22247057,1753.3,1752.3,43.69729037]
[1745857234221,1.22247057,1753.3,1752.6,5.70571151]
[1745857234525,1.22247057,1753.3,1752.5,11.95454506]
[1745857234707,1.22247057,1753.3,1752.6,6.90125803]
[1745857234910,1.22247057,1753.3,1752.7,5.70543922]
[1745857235109,1.22247057,1753.3,1752.7,5.70539153]
[1745857235283,1.22247057,1753.3,1752.6,1.19545451]
[1745857235619,0.7971,1753.3,1752.8,5.70503539]
[1745857235822,5.69857324,1754.1,1752.9,10.62250354]
[1745857235823,0.7615,1754.0,1752.9,10.62250354]
[1745857235997,0.7615,1754.0,1752.9,16.32718636]
[1745857236195,0.16535959,1753.9,1752.9,16.32714524]
[1745857236495,0.48232055,1753.9,1753.0,0.55]
[1745857236711,0.48232055,1753.9,1752.9,10.62250354]
[1745857236893,0.48232055,1753.9,1753.0,1.06225035]
[1745857237217,0.48232055,1753.9,1753.0,6.76670641]
[1745857237415,0.48232055,1753.9,1753.0,6.76672388]
[1745857237586,0.48232055,1753.9,1753.1,5.70415518]
[1745857237781,0.48232055,1753.9,1753.1,5.69857324]
[1745857238013,0.31696096,1753.9,1753.2,0.56985732]
[1745857238253,0.31696096,1753.9,1753.2,17.69785732]
[1745857238391,0.31696096,1753.9,1753.3,5.70351744]
[1745857238596,0.7615,1754.0,1753.2,23.40152279]
[1745857239385,0.7615,1754.0,1753.3,5.70340485]
[1745857239720,0.7615,1754.0,1753.4,0.57034049]
[1745857239884,0.7615,1754.0,1753.5,9.78]
[1745857240085,0.7615,1754.0,1753.5,15.4828449]
[1745857240407,0.7615,1754.0,1753.5,9.78]
[1745857240723,0.15166828,1753.9,1753.5,9.78]
[1745857241587,0.7615,1754.0,1753.5,9.78]
[1745857241803,3.7615,1754.0,1753.2,17.128]
[1745857242022,1.29403552,1753.9,1753.2,17.128]
[1745857242347,0.10298552,1753.8,1753.2,17.128]
[1745857242521,0.25216145,1753.8,1753.2,17.128]
[1745857243344,0.56898617,1753.8,1753.2,17.128]
[1745857245412,0.46600065,1753.8,1753.2,17.128]
[1745857246317,0.31682472,1753.8,1753.2,17.128]
[1745857246538,0.14939973,1753.7,1753.2,17.128]
[1745857246856,0.31682472,1753.8,1753.2,17.128]
[1745857247232,0.31682472,1753.8,1753.2,20.38920175]
[1745857247437,0.14918725,1753.7,1753.2,20.38920175]
[1745857247761,0.8149,1753.9,1753.2,20.38920175]
[1745857247942,0.14703373,1753.6,1753.2,20.38920175]
[1745857248144,0.42550518,1754.1,1753.4,5.70295993]
[1745857248344,0.81,1754.2,1753.6,5.70241009]
[1745857248649,0.81,1754.2,1753.7,9.51]
[1745857249054,1.23499357,1754.2,1753.7,9.51]
[1745857249217,1.23499357,1754.2,1753.8,9.51]
[1745857250156,0.81,1754.2,1753.8,9.51]
[1745857250514,1.43070677,1754.7,1753.8,10.461]
[1745857250714,1.43070677,1754.7,1753.9,11.39999468]
[1745857250715,0.14290497,1754.1,1753.9,11.39999468]
[1745857250954,1.1435508,1754.7,1754.0,0.55]
[1745857251564,1.1435508,1754.7,1754.2,5.70059631]
[1745857252063,0.3340508,1754.7,1754.2,5.70059631]
[1745857252245,0.3340508,1754.7,1754.3,0.57005963]
[1745857252444,0.3340508,1754.7,1754.4,9.509]
[1745857253281,0.13317674,1754.6,1754.4,9.509]
[1745857253431,0.3340508,1754.7,1754.4,9.509]
[1745857253732,0.8001,1754.5,1754.4,9.509]
[1745857254967,0.8001,1754.5,1754.1,26.345]
[1745857255322,0.1322707,1754.4,1754.1,26.345]
[1745857255869,0.1322707,1754.4,1754.1,17.121]
[1745857256261,0.44878678,1754.4,1754.1,17.121]
[1745857256557,0.87860532,1754.4,1754.1,17.121]
[1745857257256,0.56208924,1754.4,1754.1,17.121]
[1745857259660,0.56208924,1754.4,1753.5,0.57029599]
[1745857259839,0.56208924,1754.4,1753.7,9.223]
[1745857260658,0.7753,1754.3,1753.2,0.7835]
[1745857260859,0.7753,1754.1,1753.2,8.957]
[1745857261225,0.127647,1754.0,1753.2,14.66075365]
[1745857261425,0.127647,1754.0,1753.3,1.46607537]
[1745857262138,0.127647,1754.0,1753.2,8.957]
[1745857262864,0.127647,1754.0,1753.2,14.66074967]
[1745857263466,0.7,1753.9,1753.2,14.66074967]
[1745857263643,0.7,1753.9,1753.2,8.957]
[1745857264030,0.7,1753.9,1753.0,8.957]
[1745857264031,0.779,1753.7,1753.0,8.957]
[1745857264571,0.779,1753.7,1753.0,9.8527]
[1745857264774,0.12271843,1753.6,1753.0,9.8527]
[1745857264940,0.779,1753.7,1753.0,9.8527]
[1745857265139,0.12226459,1753.5,1753.0,8.957]
[1745857265366,0.779,1753.7,1753.0,8.957]
[1745857265561,0.12181071,1753.4,1753.0,8.957]
[1745857265779,0.779,1753.7,1753.0,8.957]
[1745857265980,0.12135677,1753.3,1753.0,8.957]
[1745857266183,0.31703485,1753.6,1753.0,8.957]
[1745857266346,0.12090279,1753.2,1753.0,8.957]
[1745857266780,3.0,1753.5,1753.0,8.957]
[1745857266978,0.11910584,1753.1,1753.0,8.957]
[1745857267186,3.93670349,1753.5,1753.0,8.957]
[1745857267394,0.11910584,1753.1,1753.0,8.957]
[1745857267545,3.93670349,1753.5,1753.0,8.957]
[1745857267749,0.11910584,1753.1,1753.0,8.957]
[1745857267985,3.93670349,1753.5,1753.0,8.957]
[1745857268155,3.93670349,1753.5,1752.6,17.118]
[1745857268156,0.1180842,1753.1,1752.6,17.118]
[1745857268360,0.1180842,1753.1,1752.1,8.958]
[1745857268361,0.8262,1753.0,1752.1,8.958]
[1745857268588,0.94111101,1753.0,1752.1,8.958]
[1745857268855,0.11491101,1753.0,1752.3,0.7771]
[1745857269157,1.25099891,1753.3,1752.5,5.69857324]
[1745857269371,1.25099891,1753.3,1752.4,0.55]
[1745857269999,1.25099891,1753.3,1752.3,6.47567324]
[1745857270197,7.30099891,1753.3,1752.3,5.69857324]
[1745857270348,3.52740354,1753.2,1752.4,8.96]
[1745857270999,0.52740354,1753.2,1752.6,5.69857324]
[1745857271161,0.52740354,1753.2,1752.6,11.40427009]
[1745857271354,0.52740354,1753.2,1752.4,8.96]
[1745857271556,1.25099891,1753.3,1752.5,6.25598101]
[1745857271754,1.25099891,1753.3,1752.6,5.69857324]
[1745857271964,1.25099891,1753.3,1752.6,11.40418277]
[1745857272163,0.8262,1753.3,1752.5,6.25597534]
[1745857272353,0.8262,1753.3,1752.7,0.55]
[1745857272555,0.8247,1753.6,1752.7,1.3344]
[1745857272880,0.52688858,1753.8,1753.3,0.55]
[1745857273077,0.52688858,1753.8,1753.4,8.698]
[1745857273595,1.95930327,1753.9,1753.4,8.698]
[1745857274784,1.95930327,1753.9,1753.5,5.69857324]
[1745857274785,1.5247,1753.9,1753.5,5.69857324]
[1745857274977,0.7,1753.9,1753.6,0.55]
[1745857275670,0.7,1753.9,1753.5,17.124]
[1745857276458,0.7,1753.9,1753.6,8.698]
[1745857279305,0.7,1753.9,1753.8,6.25190443]
[1745857279513,0.8306,1754.6,1753.9,0.55]
[1745857279712,0.8306,1754.6,1753.9,6.25153699]
[1745857280010,0.8306,1754.6,1753.9,6.25138341]
[1745857280213,0.8306,1754.6,1754.0,5.70124954]
[1745857280436,0.8306,1754.6,1753.9,6.25142275]
[1745857280578,0.8306,1754.6,1754.0,0.62514227]
[1745857280984,0.8306,1754.6,1753.9,0.55]
[1745857281295,0.8306,1754.6,1753.9,6.25135064]
[1745857281528,0.8306,1754.6,1753.9,0.55]
[1745857281692,0.8306,1754.6,1753.9,6.25148005]
[1745857282012,0.8306,1754.6,1753.9,0.55]
[1745857282215,0.8306,1754.6,1753.9,7.5715291]
[1745857282723,0.8306,1754.6,1753.9,7.57143741]
[1745857282879,0.8306,1754.6,1754.2,5.69857324]
[1745857283081,0.3340508,1754.7,1754.3,8.439]
[1745857284216,0.3340508,1754.7,1754.6,0.55]
[1745857284627,0.7527,1755.9,1754.6,4.17485732]
[1745857284916,0.7527,1755.9,1754.9,6.24857324]
[1745857285220,0.7527,1755.9,1755.0,8.438]
[1745857285518,0.7527,1755.6,1755.0,8.438]
[1745857285743,0.7963,1755.5,1754.6,8.438]
[1745857286021,0.7963,1755.3,1754.6,9.2818]
[1745857287924,0.7963,1755.3,1754.6,8.438]
[1745857288119,0.7963,1755.3,1754.4,17.117]
[1745857288328,0.7963,1755.3,1754.5,8.436]
[1745857288913,1.21790496,1755.3,1754.5,8.436]
[1745857289328,3.0,1755.2,1754.5,8.436]
[1745857289620,1.101,1755.1,1754.5,8.436]
[1745857290010,0.801,1755.1,1754.5,8.436]
[1745857292223,0.801,1755.1,1754.6,11.94772974]
[1745857292529,0.8199,1755.5,1754.8,0.55]
[1745857292719,0.8199,1755.5,1754.7,6.24882271]
[1745857292901,0.8199,1755.5,1754.7,0.55]
[1745857293103,0.8199,1755.5,1754.7,1.82172775]
[1745857293414,1.25549287,1755.5,1754.7,1.27172775]
[1745857293615,1.25549287,1755.5,1754.6,5.69857324]
[1745857294189,1.25549287,1755.5,1754.5,8.436]
[1745857296094,4.25549287,1755.5,1754.5,8.436]
[1745857298128,4.25549287,1755.5,1754.6,11.94778699]
[1745857298630,1.25549287,1755.5,1754.6,6.24857324]
[1745857298820,4.25549287,1755.5,1754.7,0.62485732]
[1745857300316,4.25549287,1755.5,1754.5,8.436]
[1745857301419,0.31557192,1755.4,1754.5,8.436]
[1745857301634,0.7674,1755.3,1754.5,8.436]
[1745857302632,0.7674,1755.3,1754.8,0.55]
[1745857302839,0.7674,1755.3,1754.8,6.24863585]
[1745857303044,0.7674,1755.3,1754.9,0.62486359]
[1745857303421,0.7674,1755.3,1754.8,0.55]
[1745857303810,0.7829,1755.6,1755.0,5.69857324]
[1745857304040,0.7829,1755.6,1755.1,7.927]
[1745857306746,0.7829,1755.6,1755.2,0.55]
[1745857306932,0.42990251,1756.0,1755.4,0.55]
[1745857307128,0.8127,1756.1,1755.4,1.17469797]
[1745857308230,0.8127,1756.1,1755.3,17.107]
[1745857308430,0.7628,1756.0,1755.3,17.107]
[1745857308633,1.18560092,1756.0,1755.3,17.107]
[1745857309055,0.31612924,1755.9,1755.3,17.107]
[1745857309346,0.8305,1755.8,1755.3,17.107]
[1745857309922,0.31612924,1755.7,1755.3,17.107]
[1745857311259,0.73079216,1755.7,1755.3,17.107]
[1745857311850,0.7685,1755.6,1755.3,17.107]
[1745857312151,3.7685,1755.6,1755.3,17.107]
[1745857312327,4.08462924,1755.6,1755.3,17.107]
[1745857313419,0.31612924,1755.5,1755.3,17.107]
[1745857313817,0.72459216,1755.5,1754.6,17.105]
[1745857314012,0.7951,1755.4,1754.7,7.926]
[1745857314422,0.31612924,1755.3,1754.7,7.926]
[1745857314621,0.7951,1755.2,1754.8,7.926]
[1745857315420,0.31612924,1755.1,1754.8,7.926]
[1745857315751,3.31612924,1755.1,1754.8,7.926]
[1745857316254,0.31612924,1755.0,1754.6,17.105]
[1745857316443,0.7826,1754.9,1754.6,17.105]
[1745857317370,1.09872924,1754.9,1754.6,17.105]
[1745857318165,0.7,1754.8,1754.6,17.105]
[1745857318370,0.7,1754.8,1754.4,7.663]
[1745857318371,1.01612924,1754.8,1754.4,7.663]
[1745857318563,0.7802,1754.6,1753.4,5.68654907]
[1745857318735,0.7802,1754.3,1753.5,8.23265491]
[1745857319060,7.14632924,1754.3,1753.5,8.23265491]
[1745857319263,0.7644,1754.1,1753.5,7.664]
[1745857320125,0.8248,1754.4,1753.7,5.70207743]
[1745857320354,0.8248,1754.4,1753.8,0.55]
[1745857320666,0.8248,1754.4,1753.8,6.25179629]
[1745857320828,0.8248,1754.4,1753.5,3.0]
[1745857321028,0.8248,1754.4,1753.9,7.665]
[1745857322425,0.52735996,1754.5,1754.3,5.68654907]
[1745857322631,0.7,1754.8,1754.4,8.215]
[1745857322859,0.7,1754.8,1754.4,13.91489191]
[1745857323066,0.7,1754.8,1754.4,8.215]
[1745857323263,0.7,1754.8,1754.5,0.8215]
[1745857323442,0.7,1754.8,1754.5,6.52098053]
[1745857323631,0.7,1754.8,1754.5,0.8215]
[1745857323966,0.7,1754.8,1754.5,6.52109367]
[1745857324961,0.7,1754.8,1754.5,0.8215]
[1745857325170,0.7,1754.8,1754.5,6.52112791]
[1745857325467,0.7,1754.8,1754.6,0.65211279]
[1745857325673,0.7,1754.8,1754.5,6.52095313]
[1745857325983,0.7,1754.8,1754.7,6.24897988]
[1745857326155,0.7,1754.8,1754.7,0.55]
[1745857326353,0.7,1754.8,1754.6,6.49124907]
[1745857326658,0.7,1754.8,1754.4,7.665]
[1745857326861,0.7,1754.8,1754.5,7.666]
[1745857327077,0.7,1754.8,1754.3,17.11]
[1745857327438,0.7,1754.8,1754.4,7.666]
[1745857329957,1.12427085,1754.8,1754.4,7.666]
[1745857330343,1.12427085,1754.8,1754.3,17.11]
[1745857330344,0.8038,1754.7,1753.7,22.79754907]
[1745857330539,0.8038,1754.5,1753.7,17.111]
[1745857330774,0.7595,1754.3,1753.8,7.666]
[1745857330977,0.7595,1754.3,1753.6,0.3]
[1745857331183,0.7595,1754.3,1753.6,7.666]
[1745857331386,0.7595,1754.3,1753.6,8.4326]
[1745857331585,0.7595,1754.3,1753.6,7.666]
[1745857331880,1.07467971,1754.3,1753.6,13.36838037]
[1745857332175,1.07467971,1754.3,1753.6,7.666]
[1745857332583,1.51173985,1754.3,1753.6,7.666]
[1745857332876,1.19656014,1754.3,1753.6,7.666]
[1745857333067,1.19656014,1754.3,1753.7,0.7666]
[1745857333744,1.19656014,1754.3,1753.6,7.666]
[1745857334887,0.8069,1754.2,1753.6,7.666]
[1745857336184,0.42306396,1754.3,1753.5,7.401]
[1745857336185,0.8166,1754.0,1753.5,7.401]
[1745857336381,0.8166,1754.0,1753.4,17.111]
[1745857336382,3.0,1753.8,1753.4,17.111]
[1745857336546,0.8166,1753.7,1753.5,7.401]
[1745857337682,0.8166,1753.7,1753.5,8.23325621]